[Event "Early-Titled-Tuesday-Blitz-June-18-2024"]
[Site "Chess.com"]
[Date "2024.06.18"]
[Round "1"]
[White "SultaiC"]
[Black "K_A_S_T_O_R"]
[Result "0-1"]
[WhiteElo "2469"]
[BlackElo "2824"]
[TimeControl "180+1"]
[EndTime "8:06:19 PDT"]
[Termination "K_A_S_T_O_R won by checkmate"]

1. e4 {[%clk 0:02:59.7]} 1... c5 {[%clk 0:02:59.7]} 2. Nf3 {[%clk 0:03:00.3]}
2... d6 {[%clk 0:03:00]} 3. d4 {[%clk 0:03:00.4]} 3... cxd4 {[%clk 0:03:00.2]}
4. Nxd4 {[%clk 0:03:01.3]} 4... Nf6 {[%clk 0:03:00.1]} 5. Nc3 {[%clk 0:03:01.7]}
5... a6 {[%clk 0:03:00.4]} 6. Bc4 {[%clk 0:03:01.4]} 6... e6 {[%clk 0:02:59.9]}
7. O-O {[%clk 0:02:54.8]} 7... b5 {[%clk 0:02:59]} 8. Bd3 {[%clk 0:02:51.4]}
8... Be7 {[%clk 0:02:55.4]} 9. Be3 {[%clk 0:02:50.4]} 9... Bb7 {[%clk
0:02:55.3]} 10. f3 {[%clk 0:02:50.6]} 10... Nbd7 {[%clk 0:02:54.6]} 11. Qe1
{[%clk 0:02:50.9]} 11... O-O {[%clk 0:02:52.1]} 12. Rd1 {[%clk 0:02:51.5]} 12...
b4 {[%clk 0:02:48.8]} 13. Nce2 {[%clk 0:02:51.5]} 13... d5 {[%clk 0:02:49]} 14.
Ng3 {[%clk 0:02:48.7]} 14... dxe4 {[%clk 0:02:46.9]} 15. Nxe4 {[%clk 0:02:47]}
15... Nxe4 {[%clk 0:02:41.8]} 16. Bxe4 {[%clk 0:02:47.9]} 16... Bxe4 {[%clk
0:02:41.6]} 17. fxe4 {[%clk 0:02:43]} 17... Qc7 {[%clk 0:02:40.9]} 18. Qf2
{[%clk 0:02:41.9]} 18... Rac8 {[%clk 0:02:27]} 19. Rc1 {[%clk 0:02:36.5]} 19...
Nf6 {[%clk 0:02:22.8]} 20. Qf3 {[%clk 0:02:26.6]} 20... Qe5 {[%clk 0:02:21.2]}
21. Rfe1 {[%clk 0:02:00.8]} 21... Qxe4 {[%clk 0:02:20.5]} 22. Qg3 {[%clk
0:01:43.9]} 22... Qg6 {[%clk 0:02:19.8]} 23. Qf3 {[%clk 0:01:41.9]} 23... Nd5
{[%clk 0:02:17.2]} 24. Bf2 {[%clk 0:01:31.7]} 24... Bf6 {[%clk 0:02:16.8]} 25.
Re2 {[%clk 0:01:27.5]} 25... Rfd8 {[%clk 0:02:14.1]} 26. h4 {[%clk 0:01:21.3]}
26... h5 {[%clk 0:02:13]} 27. a3 {[%clk 0:01:15.8]} 27... bxa3 {[%clk
0:02:11.4]} 28. bxa3 {[%clk 0:01:13.6]} 28... Rc3 {[%clk 0:02:02.5]} 29. Qe4
{[%clk 0:01:10.9]} 29... Qxe4 {[%clk 0:02:02]} 30. Rxe4 {[%clk 0:01:11.8]} 30...
Rxa3 {[%clk 0:02:00.5]} 31. c4 {[%clk 0:01:08.7]} 31... Nc3 {[%clk 0:01:54.3]}
32. Nc2 {[%clk 0:00:57.8]} 32... Nxe4 {[%clk 0:01:51.5]} 33. Nxa3 {[%clk
0:00:57.9]} 33... Nxf2 {[%clk 0:01:51.8]} 34. Kxf2 {[%clk 0:00:58.5]} 34... Bb2
{[%clk 0:01:51.9]} 35. Rb1 {[%clk 0:00:50.9]} 35... Bxa3 {[%clk 0:01:51.4]} 36.
Rb3 {[%clk 0:00:45.7]} 36... Bc5+ {[%clk 0:01:51.5]} 37. Kf3 {[%clk 0:00:46.5]}
37... Rd4 {[%clk 0:01:47.8]} 38. Kg3 {[%clk 0:00:40.2]} 38... Rxc4 {[%clk
0:01:46.9]} 39. Kh3 {[%clk 0:00:38.5]} 39... Bb4 {[%clk 0:01:45.6]} 40. Rb1
{[%clk 0:00:34.3]} 40... a5 {[%clk 0:01:44.9]} 41. Rb2 {[%clk 0:00:31.4]} 41...
Rc3+ {[%clk 0:01:44.9]} 42. Kh2 {[%clk 0:00:31.3]} 42... Bd6+ {[%clk 0:01:45.4]}
43. g3 {[%clk 0:00:30.6]} 43... Bxg3+ {[%clk 0:01:45.3]} 44. Kh3 {[%clk
0:00:30.3]} 44... Be5+ {[%clk 0:01:44.6]} 45. Kg2 {[%clk 0:00:27.3]} 45... Rg3+
{[%clk 0:01:44.9]} 46. Kh2 {[%clk 0:00:26.9]} 46... Rg4+ {[%clk 0:01:43.8]} 47.
Kh3 {[%clk 0:00:25.4]} 47... Bxb2 {[%clk 0:01:44.1]} 48. Kh2 {[%clk 0:00:26.1]}
48... Be5+ {[%clk 0:01:43.3]} 49. Kh3 {[%clk 0:00:26.9]} 49... Rxh4+ {[%clk
0:01:43.5]} 50. Kxh4 {[%clk 0:00:26.8]} 50... g6 {[%clk 0:01:44]} 51. Kg5 {[%clk
0:00:27.4]} 51... a4 {[%clk 0:01:44.5]} 52. Kh4 {[%clk 0:00:27]} 52... a3 {[%clk
0:01:44.3]} 53. Kg5 {[%clk 0:00:27.5]} 53... a2 {[%clk 0:01:44.6]} 54. Kh6
{[%clk 0:00:28.2]} 54... Bf4# {[%clk 0:01:43.9]} 0-1

[Event "Early-Titled-Tuesday-Blitz-June-18-2024"]
[Site "Chess.com"]
[Date "2024.06.18"]
[Round "1"]
[White "santosalberto1987"]
[Black "SoCalJuniorChess"]
[Result "1-0"]
[WhiteElo "2595"]
[BlackElo "2226"]
[TimeControl "180+1"]
[EndTime "8:06:19 PDT"]
[Termination "santosalberto1987 won on time"]

1. e4 {[%clk 0:03:00.3]} 1... d5 {[%clk 0:02:57.9]} 2. exd5 {[%clk 0:03:00.1]}
2... Qxd5 {[%clk 0:02:58.8]} 3. Nf3 {[%clk 0:03:00.1]} 3... Bg4 {[%clk
0:02:57.9]} 4. Be2 {[%clk 0:03:00.2]} 4... c6 {[%clk 0:02:57.1]} 5. d4 {[%clk
0:03:00.3]} 5... e6 {[%clk 0:02:56.6]} 6. O-O {[%clk 0:02:59.3]} 6... Nf6 {[%clk
0:02:55.9]} 7. c4 {[%clk 0:02:59.2]} 7... Qd8 {[%clk 0:02:51.6]} 8. Nc3 {[%clk
0:02:58.8]} 8... Bd6 {[%clk 0:02:51.2]} 9. h3 {[%clk 0:02:57.5]} 9... Bh5 {[%clk
0:02:49.7]} 10. g4 {[%clk 0:02:57.4]} 10... Bg6 {[%clk 0:02:48.9]} 11. Ne5
{[%clk 0:02:58]} 11... Nbd7 {[%clk 0:02:34.5]} 12. f4 {[%clk 0:02:57.8]} 12...
h5 {[%clk 0:02:30.1]} 13. Nxg6 {[%clk 0:02:56.9]} 13... fxg6 {[%clk 0:02:29.7]}
14. Bd3 {[%clk 0:02:51]} 14... Nf8 {[%clk 0:02:22.6]} 15. Qe2 {[%clk 0:02:38.4]}
15... hxg4 {[%clk 0:02:17.2]} 16. hxg4 {[%clk 0:02:38.3]} 16... Qe7 {[%clk
0:02:04.3]} 17. Be3 {[%clk 0:02:30.9]} 17... O-O-O {[%clk 0:02:01.7]} 18. Kg2
{[%clk 0:02:31.1]} 18... N8d7 {[%clk 0:01:49.1]} 19. Bxg6 {[%clk 0:02:29]} 19...
Rh6 {[%clk 0:01:44.4]} 20. Bd3 {[%clk 0:02:25.5]} 20... Rh4 {[%clk 0:01:43.8]}
21. g5 {[%clk 0:02:17]} 21... Rg4+ {[%clk 0:01:38.7]} 22. Kf3 {[%clk 0:02:11.3]}
22... Bxf4 {[%clk 0:00:54.2]} 23. Bxf4 {[%clk 0:02:05.6]} 23... Rxf4+ {[%clk
0:00:55.1]} 24. Kxf4 {[%clk 0:02:05.4]} 24... e5+ {[%clk 0:00:47.8]} 25. dxe5
{[%clk 0:02:01.1]} 25... Nc5 {[%clk 0:00:39.8]} 26. gxf6 {[%clk 0:01:52.9]}
26... gxf6 {[%clk 0:00:36.5]} 27. Bf5+ {[%clk 0:01:52.8]} 27... Kb8 {[%clk
0:00:35.6]} 28. e6 {[%clk 0:01:38.3]} 28... Rd4+ {[%clk 0:00:28.2]} 29. Kf3
{[%clk 0:01:29.3]} 29... Qd6 {[%clk 0:00:28.7]} 30. Kg2 {[%clk 0:01:20.4]} 30...
Rd2 {[%clk 0:00:25.9]} 31. Rae1 {[%clk 0:01:19.2]} 31... Rxe2+ {[%clk
0:00:05.4]} 32. Rxe2 {[%clk 0:01:20.1]} 32... Nd3 {[%clk 0:00:04.8]} 33. Bxd3
{[%clk 0:01:14.9]} 33... Qxd3 {[%clk 0:00:04.4]} 34. e7 {[%clk 0:01:14.7]} 34...
Qg6+ {[%clk 0:00:03.4]} 35. Kf2 {[%clk 0:01:14.9]} 35... Qf5+ {[%clk 0:00:03]}
36. Ke1 {[%clk 0:01:14.1]} 1-0

[Event "Early-Titled-Tuesday-Blitz-June-18-2024"]
[Site "Chess.com"]
[Date "2024.06.18"]
[Round "1"]
[White "AnishOnYoutube"]
[Black "Slovineanu"]
[Result "1-0"]
[WhiteElo "3057"]
[BlackElo "2539"]
[TimeControl "180+1"]
[EndTime "8:06:25 PDT"]
[Termination "AnishOnYoutube won by resignation"]

1. Nf3 {[%clk 0:03:00.9]} 1... Nf6 {[%clk 0:02:59.5]} 2. c4 {[%clk 0:03:01]}
2... e6 {[%clk 0:02:59.5]} 3. Nc3 {[%clk 0:03:01.1]} 3... d5 {[%clk 0:03:00]} 4.
d4 {[%clk 0:03:01.7]} 4... c5 {[%clk 0:02:59.6]} 5. cxd5 {[%clk 0:03:01.8]} 5...
Nxd5 {[%clk 0:02:59.8]} 6. e4 {[%clk 0:03:01.4]} 6... Nxc3 {[%clk 0:02:59.7]} 7.
bxc3 {[%clk 0:03:02.3]} 7... cxd4 {[%clk 0:03:00.2]} 8. cxd4 {[%clk 0:03:02.9]}
8... Bb4+ {[%clk 0:03:00.5]} 9. Bd2 {[%clk 0:03:03.3]} 9... Bxd2+ {[%clk
0:03:01]} 10. Qxd2 {[%clk 0:03:03.8]} 10... O-O {[%clk 0:03:01.5]} 11. h4 {[%clk
0:03:02.4]} 11... Nc6 {[%clk 0:03:00.5]} 12. Rd1 {[%clk 0:02:52]} 12... Qa5
{[%clk 0:02:58.5]} 13. h5 {[%clk 0:02:48.8]} 13... h6 {[%clk 0:02:50]} 14. Bd3
{[%clk 0:02:43.1]} 14... Qxd2+ {[%clk 0:02:40]} 15. Kxd2 {[%clk 0:02:42]} 15...
Bd7 {[%clk 0:02:40.4]} 16. Rb1 {[%clk 0:02:34.7]} 16... b6 {[%clk 0:02:38.2]}
17. Rhc1 {[%clk 0:02:30.3]} 17... Rfd8 {[%clk 0:02:11.8]} 18. Ke3 {[%clk
0:02:29.5]} 18... Kf8 {[%clk 0:02:06.2]} 19. Ba6 {[%clk 0:02:24.8]} 19... Rab8
{[%clk 0:02:02]} 20. g4 {[%clk 0:02:23.9]} 20... Ke7 {[%clk 0:01:59]} 21. Rc3
{[%clk 0:02:14]} 21... f6 {[%clk 0:01:19.8]} 22. a3 {[%clk 0:01:53.3]} 22... Kd6
{[%clk 0:01:03.6]} 23. e5+ {[%clk 0:01:37.4]} 23... Ke7 {[%clk 0:00:51.3]} 24.
Rbc1 {[%clk 0:01:37.4]} 24... Na5 {[%clk 0:00:38.1]} 25. Rc7 {[%clk 0:01:36.9]}
25... Ra8 {[%clk 0:00:32.8]} 26. Nd2 {[%clk 0:01:15.4]} 26... Kf8 {[%clk
0:00:21.1]} 27. Ne4 {[%clk 0:01:09.7]} 27... fxe5 {[%clk 0:00:20]} 28. dxe5
{[%clk 0:01:10.4]} 28... Ba4 {[%clk 0:00:11.2]} 29. Nd6 {[%clk 0:01:08.2]} 29...
Nb3 {[%clk 0:00:07.6]} 30. R1c4 {[%clk 0:01:08.4]} 30... Nc5 {[%clk 0:00:07.2]}
31. R7xc5 {[%clk 0:01:01.6]} 31... bxc5 {[%clk 0:00:07.4]} 32. Rxa4 {[%clk
0:01:02.3]} 32... Rab8 {[%clk 0:00:07.8]} 33. Rf4+ {[%clk 0:01:01.6]} 33... Kg8
{[%clk 0:00:07.4]} 34. Bc4 {[%clk 0:01:02.2]} 34... Rb2 {[%clk 0:00:04.2]} 35.
Bxe6+ {[%clk 0:01:01.5]} 35... Kh8 {[%clk 0:00:04.3]} 36. Nf7+ {[%clk
0:01:01.1]} 1-0

[Event "Early-Titled-Tuesday-Blitz-June-18-2024"]
[Site "Chess.com"]
[Date "2024.06.18"]
[Round "1"]
[White "Kotofeyca"]
[Black "ViIIagra"]
[Result "0-1"]
[WhiteElo "2502"]
[BlackElo "2893"]
[TimeControl "180+1"]
[EndTime "8:06:29 PDT"]
[Termination "ViIIagra won by checkmate"]

1. d4 {[%clk 0:03:00.9]} 1... d6 {[%clk 0:03:00.6]} 2. c4 {[%clk 0:03:00.4]}
2... e5 {[%clk 0:02:58.9]} 3. Nf3 {[%clk 0:02:59.6]} 3... e4 {[%clk 0:02:58.9]}
4. Nfd2 {[%clk 0:02:59.4]} 4... f5 {[%clk 0:02:59]} 5. f3 {[%clk 0:02:56.9]}
5... e3 {[%clk 0:02:18.1]} 6. Nb3 {[%clk 0:02:56.4]} 6... f4 {[%clk 0:02:19]} 7.
g3 {[%clk 0:02:55.9]} 7... Be7 {[%clk 0:02:14.5]} 8. Qd3 {[%clk 0:02:49.2]} 8...
Nh6 {[%clk 0:02:14.7]} 9. gxf4 {[%clk 0:02:40.9]} 9... Bh4+ {[%clk 0:02:00]} 10.
Kd1 {[%clk 0:02:40.9]} 10... O-O {[%clk 0:01:57.7]} 11. Bxe3 {[%clk 0:02:37.1]}
11... Nc6 {[%clk 0:01:57.7]} 12. Nc3 {[%clk 0:02:24.2]} 12... Bf5 {[%clk
0:01:30.6]} 13. Ne4 {[%clk 0:02:09.3]} 13... d5 {[%clk 0:01:22.9]} 14. cxd5
{[%clk 0:02:01.1]} 14... Nb4 {[%clk 0:01:20.1]} 15. Qc4 {[%clk 0:01:43.2]} 15...
Nxd5 {[%clk 0:01:15.3]} 16. Nc3 {[%clk 0:01:11.9]} 16... c6 {[%clk 0:01:12.7]}
17. Bd2 {[%clk 0:00:54.9]} 17... Be6 {[%clk 0:00:57.9]} 18. Nxd5 {[%clk
0:00:49.2]} 18... cxd5 {[%clk 0:00:58.8]} 19. Qd3 {[%clk 0:00:44.3]} 19... b6
{[%clk 0:00:55.8]} 20. e4 {[%clk 0:00:41.9]} 20... Rc8 {[%clk 0:00:55.8]} 21. f5
{[%clk 0:00:33.9]} 21... Nxf5 {[%clk 0:00:54.3]} 22. exf5 {[%clk 0:00:26.8]}
22... Bxf5 {[%clk 0:00:55.2]} 23. Qb5 {[%clk 0:00:21.7]} 23... Bc2+ {[%clk
0:00:55.1]} 24. Ke2 {[%clk 0:00:19.2]} 24... Re8+ {[%clk 0:00:53.5]} 25. Be3
{[%clk 0:00:18.9]} 25... Bg5 {[%clk 0:00:54.1]} 26. Bh3 {[%clk 0:00:10.4]} 26...
Rxe3+ {[%clk 0:00:43.2]} 27. Kf2 {[%clk 0:00:11.3]} 27... Bd3 {[%clk 0:00:42.7]}
28. Qb4 {[%clk 0:00:07.4]} 28... Rc2+ {[%clk 0:00:42.6]} 29. Kg3 {[%clk
0:00:06.8]} 29... Bh4+ {[%clk 0:00:38.1]} 30. Kf4 {[%clk 0:00:06.9]} 30... Qg5#
{[%clk 0:00:39]} 0-1

[Event "Early-Titled-Tuesday-Blitz-June-18-2024"]
[Site "Chess.com"]
[Date "2024.06.18"]
[Round "1"]
[White "KononenkoD"]
[Black "FMalexhdez"]
[Result "1-0"]
[WhiteElo "2632"]
[BlackElo "2303"]
[TimeControl "180+1"]
[EndTime "8:06:29 PDT"]
[Termination "KononenkoD won on time"]

1. e4 {[%clk 0:02:59.2]} 1... c5 {[%clk 0:02:59]} 2. Nf3 {[%clk 0:02:58.8]} 2...
d6 {[%clk 0:02:59.3]} 3. d4 {[%clk 0:02:59]} 3... cxd4 {[%clk 0:02:59.7]} 4.
Nxd4 {[%clk 0:02:59.9]} 4... Nf6 {[%clk 0:03:00.2]} 5. Nc3 {[%clk 0:03:00.1]}
5... a6 {[%clk 0:03:00.5]} 6. Bc4 {[%clk 0:03:00.1]} 6... e6 {[%clk 0:03:00.1]}
7. Bb3 {[%clk 0:03:00.5]} 7... Be7 {[%clk 0:03:00.2]} 8. f4 {[%clk 0:02:58.9]}
8... Nbd7 {[%clk 0:02:59.9]} 9. O-O {[%clk 0:02:57.9]} 9... Qc7 {[%clk
0:02:59.4]} 10. Kh1 {[%clk 0:02:57.6]} 10... b5 {[%clk 0:02:59.3]} 11. f5 {[%clk
0:02:56.4]} 11... e5 {[%clk 0:02:46.1]} 12. Nde2 {[%clk 0:02:55.3]} 12... Bb7
{[%clk 0:02:46.1]} 13. a3 {[%clk 0:02:54.2]} 13... Nc5 {[%clk 0:02:45.2]} 14.
Bd5 {[%clk 0:02:52.9]} 14... Ncxe4 {[%clk 0:02:34.3]} 15. Nxe4 {[%clk
0:02:44.6]} 15... Nxe4 {[%clk 0:02:33.4]} 16. Bxe4 {[%clk 0:02:43.7]} 16... Bxe4
{[%clk 0:02:32.3]} 17. Ng3 {[%clk 0:02:44]} 17... Qb7 {[%clk 0:02:25.1]} 18. Qe2
{[%clk 0:02:32.9]} 18... Bd5 {[%clk 0:02:19]} 19. f6 {[%clk 0:02:30.1]} 19...
gxf6 {[%clk 0:02:14.6]} 20. Nf5 {[%clk 0:02:28.5]} 20... Bc4 {[%clk 0:02:11.5]}
21. Qf2 {[%clk 0:02:28.2]} 21... Bxf1 {[%clk 0:02:09.6]} 22. Qxf1 {[%clk
0:02:29.1]} 22... Rc8 {[%clk 0:01:59.8]} 23. c3 {[%clk 0:02:28.6]} 23... Rg8
{[%clk 0:01:58.7]} 24. Bh6 {[%clk 0:02:27.4]} 24... Rc4 {[%clk 0:01:45.1]} 25.
Rd1 {[%clk 0:02:13.5]} 25... Rcg4 {[%clk 0:01:41.1]} 26. Ng3 {[%clk 0:01:58.6]}
26... R8g6 {[%clk 0:01:24.3]} 27. Be3 {[%clk 0:01:56.2]} 27... d5 {[%clk
0:01:23.4]} 28. Qf5 {[%clk 0:01:50.2]} 28... Rxg3 {[%clk 0:01:10.4]} 29. hxg3
{[%clk 0:01:49.6]} 29... Rxg3 {[%clk 0:01:10.2]} 30. Bf2 {[%clk 0:01:47.1]}
30... Rg5 {[%clk 0:01:09.1]} 31. Qxh7 {[%clk 0:01:46.4]} 31... d4 {[%clk
0:01:06.4]} 32. Qh8+ {[%clk 0:01:46.4]} 32... Bf8 {[%clk 0:00:52.6]} 33. Qh3
{[%clk 0:01:46.4]} 33... Qe4 {[%clk 0:00:29.1]} 34. cxd4 {[%clk 0:01:40.6]}
34... Qe2 {[%clk 0:00:21.9]} 35. Qc8+ {[%clk 0:01:23.4]} 35... Ke7 {[%clk
0:00:21.8]} 36. Rc1 {[%clk 0:01:15.4]} 36... f5 {[%clk 0:00:04.5]} 37. dxe5
{[%clk 0:01:09.4]} 1-0

[Event "Early-Titled-Tuesday-Blitz-June-18-2024"]
[Site "Chess.com"]
[Date "2024.06.18"]
[Round "1"]
[White "stolencandy13"]
[Black "giovannibrandao7"]
[Result "1-0"]
[WhiteElo "2632"]
[BlackElo "2301"]
[TimeControl "180+1"]
[EndTime "8:06:30 PDT"]
[Termination "stolencandy13 won by checkmate"]

1. d4 {[%clk 0:03:00.9]} 1... Nf6 {[%clk 0:02:58.9]} 2. Bf4 {[%clk 0:03:00.3]}
2... g6 {[%clk 0:02:57.1]} 3. Nc3 {[%clk 0:02:59.6]} 3... d5 {[%clk 0:02:56.2]}
4. Nf3 {[%clk 0:02:57.6]} 4... Bg7 {[%clk 0:02:56]} 5. e3 {[%clk 0:02:55.3]}
5... c6 {[%clk 0:02:52.3]} 6. Qd2 {[%clk 0:02:52]} 6... O-O {[%clk 0:02:50.4]}
7. Ne5 {[%clk 0:02:49.9]} 7... Be6 {[%clk 0:02:48.9]} 8. h4 {[%clk 0:02:38.3]}
8... Nbd7 {[%clk 0:02:47.7]} 9. f3 {[%clk 0:02:35.5]} 9... Nxe5 {[%clk
0:02:30.2]} 10. Bxe5 {[%clk 0:02:33.6]} 10... Nh5 {[%clk 0:02:16.7]} 11. Bxg7
{[%clk 0:02:01.6]} 11... Nxg7 {[%clk 0:02:16.5]} 12. g4 {[%clk 0:02:00.9]} 12...
f5 {[%clk 0:01:55.5]} 13. h5 {[%clk 0:01:55.2]} 13... fxg4 {[%clk 0:01:44.9]}
14. hxg6 {[%clk 0:01:54.7]} 14... hxg6 {[%clk 0:01:15.3]} 15. fxg4 {[%clk
0:01:44.4]} 15... Bxg4 {[%clk 0:01:14.6]} 16. Be2 {[%clk 0:01:44.7]} 16... Bxe2
{[%clk 0:01:04.6]} 17. Nxe2 {[%clk 0:01:44.9]} 17... e5 {[%clk 0:00:39.8]} 18.
O-O-O {[%clk 0:01:41.8]} 18... Qf6 {[%clk 0:00:32.5]} 19. Rdg1 {[%clk
0:01:34.5]} 19... exd4 {[%clk 0:00:27]} 20. exd4 {[%clk 0:01:20.8]} 20... Rae8
{[%clk 0:00:23.7]} 21. b3 {[%clk 0:01:06.5]} 21... Qf2 {[%clk 0:00:15.1]} 22.
Qh6 {[%clk 0:00:51.3]} 22... Qe3+ {[%clk 0:00:14.2]} 23. Qxe3 {[%clk 0:00:46.6]}
23... Rxe3 {[%clk 0:00:15.1]} 24. Kd2 {[%clk 0:00:45]} 24... Rfe8 {[%clk
0:00:14.4]} 25. Nf4 {[%clk 0:00:38.6]} 25... R3e4 {[%clk 0:00:14.7]} 26. Nxg6
{[%clk 0:00:36]} 26... Rxd4+ {[%clk 0:00:14.2]} 27. Kc3 {[%clk 0:00:35.7]} 27...
Rde4 {[%clk 0:00:14.4]} 28. Rf1 {[%clk 0:00:31.8]} 28... R4e6 {[%clk 0:00:11.6]}
29. Rh8# {[%clk 0:00:30.3]} 1-0

[Event "Early-Titled-Tuesday-Blitz-June-18-2024"]
[Site "Chess.com"]
[Date "2024.06.18"]
[Round "1"]
[White "Dreamer_01"]
[Black "Evan_Attaker"]
[Result "1/2-1/2"]
[WhiteElo "2399"]
[BlackElo "2689"]
[TimeControl "180+1"]
[EndTime "8:06:37 PDT"]
[Termination "Game drawn by repetition"]

1. e4 {[%clk 0:03:00.9]} 1... d6 {[%clk 0:02:58.4]} 2. d4 {[%clk 0:02:59]} 2...
Nf6 {[%clk 0:02:56.9]} 3. Nc3 {[%clk 0:02:58.7]} 3... g6 {[%clk 0:02:56.7]} 4.
f3 {[%clk 0:02:57.9]} 4... Bg7 {[%clk 0:02:56.2]} 5. Be3 {[%clk 0:02:57.9]} 5...
c6 {[%clk 0:02:53.6]} 6. Qd2 {[%clk 0:02:57.4]} 6... h5 {[%clk 0:02:53.5]} 7.
O-O-O {[%clk 0:02:56.7]} 7... Qa5 {[%clk 0:02:46.8]} 8. Kb1 {[%clk 0:02:54.7]}
8... Nbd7 {[%clk 0:02:43]} 9. h4 {[%clk 0:02:48.6]} 9... b5 {[%clk 0:02:38.6]}
10. Nh3 {[%clk 0:02:25.9]} 10... b4 {[%clk 0:02:34.2]} 11. Ne2 {[%clk
0:02:25.6]} 11... Ba6 {[%clk 0:02:32.5]} 12. Nc1 {[%clk 0:02:24.8]} 12... Bxf1
{[%clk 0:02:31.5]} 13. Rhxf1 {[%clk 0:02:24.9]} 13... Qb5 {[%clk 0:02:30]} 14.
Ng5 {[%clk 0:02:14.8]} 14... a5 {[%clk 0:02:28.4]} 15. f4 {[%clk 0:02:09.4]}
15... Nb6 {[%clk 0:02:10.1]} 16. e5 {[%clk 0:01:45.2]} 16... Nfd5 {[%clk
0:02:05.5]} 17. Bg1 {[%clk 0:01:37.3]} 17... O-O {[%clk 0:01:52.5]} 18. Qd3
{[%clk 0:01:21.7]} 18... Nc4 {[%clk 0:01:46.6]} 19. e6 {[%clk 0:01:07]} 19... f5
{[%clk 0:01:42.5]} 20. Nf7 {[%clk 0:00:51.2]} 20... Rfb8 {[%clk 0:01:36.4]} 21.
Qg3 {[%clk 0:00:49.6]} 21... Nd2+ {[%clk 0:01:12]} 22. Ka1 {[%clk 0:00:26.5]}
22... Nxf1 {[%clk 0:00:25.3]} 23. Qxg6 {[%clk 0:00:26.5]} 23... Nxf4 {[%clk
0:00:22.4]} 24. Nh6+ {[%clk 0:00:23.7]} 24... Kh8 {[%clk 0:00:22.5]} 25. Nf7+
{[%clk 0:00:23.2]} 25... Kg8 {[%clk 0:00:22.6]} 26. Nh6+ {[%clk 0:00:23.4]}
26... Kh8 {[%clk 0:00:23.2]} 27. Nf7+ {[%clk 0:00:19.8]} 27... Kg8 {[%clk
0:00:23.6]} 1/2-1/2

[Event "Early-Titled-Tuesday-Blitz-June-18-2024"]
[Site "Chess.com"]
[Date "2024.06.18"]
[Round "1"]
[White "JanMur7"]
[Black "RantomOpening"]
[Result "0-1"]
[WhiteElo "2236"]
[BlackElo "2603"]
[TimeControl "180+1"]
[EndTime "8:06:37 PDT"]
[Termination "RantomOpening won on time"]

1. c4 {[%clk 0:03:00.9]} 1... e6 {[%clk 0:02:55.3]} 2. Nc3 {[%clk 0:03:01.2]}
2... Nf6 {[%clk 0:02:53.3]} 3. e4 {[%clk 0:03:00]} 3... d6 {[%clk 0:02:53.1]} 4.
d4 {[%clk 0:02:59.4]} 4... Nbd7 {[%clk 0:02:52.7]} 5. Be2 {[%clk 0:02:58.8]}
5... Be7 {[%clk 0:02:52.6]} 6. Be3 {[%clk 0:02:57.1]} 6... O-O {[%clk
0:02:52.6]} 7. g4 {[%clk 0:02:56.5]} 7... b6 {[%clk 0:02:49.8]} 8. h4 {[%clk
0:02:53.8]} 8... Bb7 {[%clk 0:02:49.7]} 9. f3 {[%clk 0:02:52.8]} 9... e5 {[%clk
0:02:49.3]} 10. d5 {[%clk 0:02:52.1]} 10... Nc5 {[%clk 0:02:44.6]} 11. Nh3
{[%clk 0:02:49.7]} 11... a5 {[%clk 0:02:42.7]} 12. Nf2 {[%clk 0:02:48.3]} 12...
c6 {[%clk 0:02:37.1]} 13. h5 {[%clk 0:02:41.4]} 13... Ne8 {[%clk 0:02:35.6]} 14.
Qd2 {[%clk 0:02:30.6]} 14... Nc7 {[%clk 0:02:32.7]} 15. O-O-O {[%clk 0:02:12.4]}
15... cxd5 {[%clk 0:02:15.7]} 16. cxd5 {[%clk 0:02:10.4]} 16... Ba6 {[%clk
0:02:13.7]} 17. Rhg1 {[%clk 0:01:38.9]} 17... Qd7 {[%clk 0:01:51.4]} 18. g5
{[%clk 0:01:31.3]} 18... Nb5 {[%clk 0:01:49]} 19. Nxb5 {[%clk 0:01:15.2]} 19...
Bxb5 {[%clk 0:01:48.3]} 20. Bxb5 {[%clk 0:01:16.1]} 20... Qxb5 {[%clk
0:01:48.6]} 21. g6 {[%clk 0:01:13.3]} 21... fxg6 {[%clk 0:01:45.7]} 22. hxg6
{[%clk 0:01:12.4]} 22... a4 {[%clk 0:01:05.6]} 23. gxh7+ {[%clk 0:01:08.4]}
23... Kh8 {[%clk 0:01:05.9]} 24. Bh6 {[%clk 0:00:28.7]} 24... Bf6 {[%clk
0:00:49]} 25. Bxg7+ {[%clk 0:00:05.3]} 25... Bxg7 {[%clk 0:00:48.5]} 26. Rxg7
{[%clk 0:00:04.3]} 26... Kxg7 {[%clk 0:00:46.5]} 27. Ng4 {[%clk 0:00:04.8]}
27... Nd3+ {[%clk 0:00:41.8]} 28. Kb1 {[%clk 0:00:02.3]} 28... Qxb2+ {[%clk
0:00:41.2]} 29. Qxb2 {[%clk 0:00:02.4]} 29... Nxb2 {[%clk 0:00:42.1]} 30. Kxb2
{[%clk 0:00:01.2]} 30... Kxh7 {[%clk 0:00:43]} 31. Rc1 {[%clk 0:00:01.1]} 31...
Rfc8 {[%clk 0:00:41.9]} 0-1